bitfinex/quotes_BTCUSD_20250127
["timestamp","ask_amount","ask_price","bid_price","bid_amount"]
[1737975641551,8e-07,98431.0,98430.0,0.48347107]
[1737975642004,0.00029779,98441.0,98435.0,0.023]
[1737975642005,9.5e-07,98441.0,98435.0,0.023]
[1737975642245,9.5e-07,98441.0,98440.0,0.44272429]
[1737975642502,9.5e-07,98441.0,98440.0,0.50345607]
[1737975642856,9.5e-07,98441.0,98440.0,0.51345607]
[1737975642983,9.5e-07,98441.0,98440.0,0.55995607]
[1737975643411,0.00029758,98481.0,98460.0,0.302346]
[1737975643412,5.8e-07,98461.0,98460.0,0.302346]
[1737975643621,5.8e-07,98461.0,98460.0,1.02502507]
[1737975644048,5.8e-07,98461.0,98460.0,1.04464192]
[1737975644639,5.8e-07,98461.0,98460.0,1.04514211]
[1737975644842,1.6e-07,98469.0,98468.0,0.302333]
[1737975645043,6.8e-07,98482.0,98471.0,0.01]
[1737975645217,6.8e-07,98482.0,98481.0,0.42266029]
[1737975645443,6.8e-07,98482.0,98481.0,0.53361915]
[1737975645662,6.8e-07,98482.0,98481.0,2.03361915]
[1737975646213,6.8e-07,98482.0,98481.0,1.98339207]
[1737975646424,6.8e-07,98482.0,98481.0,0.48339207]
[1737975646637,6.8e-07,98482.0,98481.0,0.41992324]
[1737975647093,6.8e-07,98482.0,98481.0,0.42892324]
[1737975647301,6.8e-07,98482.0,98481.0,0.41992324]
[1737975648151,6.8e-07,98482.0,98481.0,0.42392324]
[1737975648726,6.8e-07,98482.0,98481.0,0.41992324]
[1737975649005,6.8e-07,98482.0,98481.0,0.12461024]
[1737975649183,6.8e-07,98482.0,98481.0,0.10634729]
[1737975649585,6.8e-07,98482.0,98481.0,0.09934729]
[1737975649804,6.8e-07,98482.0,98481.0,0.25566029]
[1737975650003,6.8e-07,98482.0,98481.0,0.27592324]
[1737975650215,6.8e-07,98482.0,98481.0,0.27192324]
[1737975650418,0.00300068,98482.0,98481.0,0.27192324]
[1737975650836,6.8e-07,98482.0,98481.0,0.27192324]
[1737975651247,6.8e-07,98482.0,98481.0,0.42192324]
[1737975651763,6.8e-07,98482.0,98481.0,0.41992324]
[1737975651997,6.8e-07,98482.0,98481.0,0.42192324]
[1737975652227,6.8e-07,98482.0,98481.0,0.40166029]
[1737975652494,6.8e-07,98482.0,98481.0,0.24966029]
[1737975652840,6.8e-07,98482.0,98481.0,0.25466029]
[1737975653075,6.8e-07,98482.0,98481.0,0.25166029]
[1737975653723,6.8e-07,98482.0,98481.0,0.42192324]
[1737975653937,6.8e-07,98482.0,98481.0,0.98652324]
[1737975654340,6.8e-07,98482.0,98481.0,0.98452324]
[1737975654552,6.8e-07,98482.0,98481.0,0.99452324]
[1737975654759,6.8e-07,98482.0,98481.0,2.50920421]
[1737975655547,6.8e-07,98482.0,98481.0,2.53011362]
[1737975655754,6.8e-07,98482.0,98481.0,2.53211362]
[1737975656296,6.8e-07,98482.0,98481.0,2.53011362]
[1737975656490,6.8e-07,98482.0,98481.0,2.50934561]
[1737975656699,6.8e-07,98482.0,98481.0,2.51834561]
[1737975656931,6.8e-07,98482.0,98481.0,2.50934561]
[1737975657328,6.8e-07,98482.0,98481.0,2.51834561]
[1737975657529,6.8e-07,98482.0,98481.0,2.50934561]
[1737975657926,6.8e-07,98482.0,98481.0,2.51834561]
[1737975658139,6.8e-07,98482.0,98481.0,2.52234561]
[1737975658430,0.00029758,98509.0,98508.0,0.302271]
[1737975658632,0.00029758,98509.0,98508.0,0.41988124]
[1737975659033,0.00029758,98509.0,98508.0,1.91988124]
[1737975659234,0.00029758,98509.0,98508.0,0.41988124]
[1737975659653,0.00029758,98509.0,98508.0,0.42038143]
[1737975659859,0.00029758,98509.0,98508.0,1.02926143]
[1737975660054,0.00029758,98509.0,98508.0,0.78930743]
[1737975660281,0.00029758,98509.0,98508.0,0.42038143]
[1737975660887,0.00029758,98509.0,98508.0,0.42138143]
[1737975661503,0.00029758,98509.0,98508.0,0.42122201]
[1737975661709,0.00029758,98509.0,98508.0,0.44322201]
[1737975662543,0.00029758,98509.0,98508.0,1.31666401]
[1737975662957,0.00029758,98509.0,98508.0,1.31766401]
[1737975663382,0.00029758,98509.0,98508.0,1.30166401]
[1737975663591,0.00029758,98509.0,98508.0,1.19876401]
[1737975663799,0.00029758,98509.0,98508.0,0.73194801]
[1737975664205,0.00020683,98509.0,98508.0,0.63944301]
[1737975664413,0.00020683,98509.0,98508.0,0.54817601]
[1737975664588,0.00020683,98509.0,98508.0,0.52517601]
[1737975664796,0.00020683,98509.0,98508.0,0.42122201]
[1737975665134,0.00020683,98509.0,98508.0,0.42222201]
[1737975665553,0.00020199,98523.0,98509.0,0.15]
[1737975665756,0.00020199,98523.0,98517.0,0.09734729]
[1737975666415,0.00020199,98523.0,98521.0,0.152251]
[1737975666656,0.00020199,98523.0,98522.0,0.09734729]
[1737975667133,0.14744999,98523.0,98522.0,0.09734729]
[1737975667296,0.22694999,98523.0,98522.0,0.09734729]
[1737975667730,0.22994999,98523.0,98522.0,0.09734729]
[1737975667906,0.003,98523.0,98522.0,0.09734729]
[1737975669333,0.006,98523.0,98522.0,0.24959729]
[1737975669566,0.001,98523.0,98522.0,0.24959729]
[1737975669988,0.01696425,98530.0,98529.0,0.152239]
[1737975670189,0.01696425,98530.0,98529.0,0.25009516]
[1737975670399,0.01696425,98530.0,98529.0,0.24958629]
[1737975670874,0.16920125,98530.0,98529.0,0.09734729]
[1737975671085,0.16920125,98530.0,98509.0,0.203027]
[1737975671086,0.202985,98529.0,98509.0,0.203027]
[1737975671293,0.14766425,98530.0,98519.0,0.152254]
[1737975671498,0.14766425,98530.0,98508.0,0.00064159]
[1737975671499,0.002,98523.0,98508.0,0.00064159]
[1737975671698,0.002,98523.0,98522.0,0.09734729]
[1737975671912,0.14766425,98530.0,98522.0,0.09734729]
[1737975672144,0.14766425,98530.0,98524.0,0.09734729]
[1737975672362,0.14966425,98530.0,98524.0,0.09734729]
[1737975672569,0.14966425,98530.0,98524.0,0.24959329]
[1737975672770,0.13711578,98530.0,98525.0,0.152245]
[1737975672969,0.00641578,98530.0,98528.0,0.09734729]
[1737975673179,0.00641578,98530.0,98520.0,0.203004]
[1737975673180,0.00641578,98530.0,98529.0,0.24958629]
[1737975673406,0.00641578,98530.0,98529.0,0.09734729]
[1737975673612,0.00641578,98530.0,98529.0,0.24958629]
[1737975674223,0.00841578,98530.0,98529.0,0.24958629]
[1737975674430,0.00841578,98530.0,98529.0,0.27995165]
[1737975675290,0.00941578,98530.0,98529.0,0.27995165]
[1737975675502,0.00741578,98530.0,98529.0,0.27995165]
[1737975675921,0.00941578,98530.0,98529.0,0.42995165]
[1737975676148,0.01041578,98530.0,98529.0,0.46149289]
[1737975676985,0.01241578,98530.0,98529.0,0.46149289]
[1737975677193,0.01241578,98530.0,98529.0,0.48449289]
[1737975677632,0.01141578,98530.0,98529.0,0.48449289]
[1737975677840,0.01141578,98530.0,98529.0,0.46149289]
[1737975678462,0.01141578,98530.0,98529.0,0.46249289]
[1737975678909,0.01141578,98530.0,98529.0,0.46149289]
[1737975679461,0.01141578,98530.0,98529.0,0.46249289]
[1737975679594,0.01141578,98530.0,98529.0,0.46449289]
[1737975679819,0.00641578,98530.0,98529.0,0.46249289]
[1737975680248,0.00641578,98530.0,98529.0,0.46449289]
[1737975680419,0.00671272,98530.0,98529.0,0.46249289]
[1737975680826,0.00671272,98530.0,98529.0,0.46349289]
[1737975681108,0.00671272,98530.0,98529.0,0.46249289]
[1737975681308,0.00671272,98530.0,98529.0,0.43212753]
[1737975681577,0.00671272,98530.0,98529.0,0.40158629]
[1737975681788,0.00671272,98530.0,98529.0,0.09934729]
[1737975681901,0.15894972,98530.0,98529.0,0.10034729]
[1737975682337,0.20494972,98530.0,98529.0,0.002]
[1737975682748,0.23537,98509.0,98492.0,0.152296]
[1737975682960,0.0831,98525.0,98508.0,0.09798888]
[1737975683184,0.0831,98525.0,98509.0,0.09734729]
[1737975683185,0.152261,98515.0,98509.0,0.09734729]
[1737975683405,0.152256,98518.0,98509.0,0.09734729]
[1737975683683,0.152258,98517.0,98509.0,0.09734729]
[1737975684188,0.02053395,98523.0,98509.0,0.09734729]
[1737975684343,0.152268,98510.0,98509.0,0.09734729]
[1737975684748,0.203018,98514.0,98509.0,0.09734729]
[1737975684953,0.05271272,98530.0,98509.0,0.09734729]
[1737975685151,0.20495172,98530.0,98519.0,0.152254]
[1737975685329,0.002,98523.0,98520.0,0.09734729]
[1737975685935,0.152242,98528.0,98520.0,0.09734729]
[1737975686142,0.152242,98527.0,98520.0,0.09734729]
[1737975686348,0.202985,98529.0,98520.0,0.09734729]
[1737975686576,0.152251,98521.0,98520.0,0.09734729]
[1737975686939,0.15227,98509.0,98508.0,0.00064159]
[1737975688011,0.15353914,98509.0,98508.0,0.00064159]
[1737975688254,0.30043914,98509.0,98508.0,0.00064159]
[1737975688607,0.30917,98509.0,98508.0,0.00064159]
[1737975688785,0.152311,98483.0,98469.0,0.15]
[1737975688968,0.152311,98483.0,98468.0,0.20311]
[1737975688969,0.152311,98483.0,98482.0,0.09734729]
[1737975689162,0.00126929,98506.0,98482.0,0.09734729]
[1737975689366,0.152302,98489.0,98482.0,0.09734729]
[1737975689574,0.14821668,98509.0,98482.0,0.09734729]
[1737975689816,0.15231,98483.0,98482.0,0.09734729]
[1737975690404,0.152307,98485.0,98482.0,0.09834729]
[1737975690843,0.20307,98488.0,98482.0,0.09734729]
[1737975691066,0.15231,98483.0,98482.0,0.09734729]
[1737975691238,0.00126928,98506.0,98482.0,0.09734729]
[1737975691472,0.00126924,98505.0,98482.0,0.09734729]
[1737975692003,0.00126924,98505.0,98482.0,0.09748869]
[1737975692217,0.152306,98486.0,98482.0,0.09748869]
[1737975692440,0.1523,98490.0,98482.0,0.09748869]
[1737975692653,0.003,98505.0,98494.0,0.152293]
[1737975692850,0.203037,98504.0,98495.0,0.09734729]
[1737975693220,0.01311934,98514.0,98495.0,0.09734729]
[1737975693221,0.203039,98503.0,98495.0,0.09734729]
[1737975693423,0.01311934,98514.0,98495.0,0.09734729]
[1737975693646,0.152285,98500.0,98495.0,0.09734729]
[1737975693878,0.15229,98496.0,98495.0,0.09734729]
[1737975696171,0.15229,98496.0,98482.0,0.0001414]
[1737975696172,0.15231,98483.0,98482.0,0.0001414]
[1737975696369,0.00126934,98495.0,98482.0,0.09748869]
[1737975696517,0.152309,98484.0,98483.0,0.09734729]
[1737975697537,0.152307,98485.0,98483.0,0.09734729]
[1737975697734,0.002,98495.0,98483.0,0.09734729]
[1737975698084,0.02045145,98502.0,98483.0,0.09734729]
[1737975698384,0.203045,98500.0,98485.0,0.152307]
[1737975698667,0.00126923,98499.0,98485.0,0.09734729]
[1737975698862,0.02031327,98499.0,98485.0,0.09734729]
[1737975699096,0.02031327,98499.0,98482.0,0.0001414]
[1737975699097,0.00126923,98498.0,98482.0,0.0001414]
[1737975699317,0.20041,98483.0,98482.0,0.0001414]
[1737975699526,0.22341,98483.0,98482.0,0.0001414]
[1737975699733,0.44841,98483.0,98482.0,0.0001414]
[1737975700183,0.22671211,98470.0,98420.0,0.0487]
[1737975700397,0.152363,98450.0,98437.0,0.09734729]
[1737975700604,0.152363,98449.0,98438.0,0.152379]
[1737975700808,0.01,98478.0,98439.0,0.09734729]
[1737975701016,0.152356,98454.0,98441.0,0.152374]
[1737975701228,0.152351,98457.0,98442.0,0.24972029]
[1737975701408,0.152352,98456.0,98443.0,0.152371]
[1737975701638,0.203128,98460.0,98444.0,0.09734729]
[1737975701842,0.203128,98460.0,98445.0,0.152368]
[1737975701843,0.152351,98457.0,98445.0,0.152368]
[1737975702060,0.152351,98457.0,98446.0,0.24971429]
[1737975702281,0.152352,98456.0,98446.0,0.09734729]
[1737975702742,0.02077752,98465.0,98446.0,0.09734729]
[1737975702944,0.152353,98456.0,98446.0,0.09734729]
[1737975703070,0.02204725,98465.0,98446.0,0.09734729]
[1737975703275,0.152352,98456.0,98446.0,0.09734729]
[1737975703830,0.203119,98464.0,98447.0,0.152366]
[1737975704035,0.02077752,98465.0,98448.0,0.09734729]
[1737975704239,0.152351,98457.0,98448.0,0.09734729]
[1737975704604,0.152353,98456.0,98448.0,0.09734729]
[1737975705422,0.203121,98463.0,98448.0,0.09734729]
[1737975705600,0.152351,98457.0,98448.0,0.09734729]
[1737975706452,0.558577,98464.0,98448.0,0.09734729]
[1737975706705,0.152353,98456.0,98448.0,0.09834729]
[1737975706921,0.152354,98455.0,98448.0,0.09734729]
[1737975707126,0.152355,98454.0,98448.0,0.09734729]
[1737975707514,0.02077752,98465.0,98440.0,0.0001414]
[1737975707515,0.152375,98441.0,98440.0,0.0001414]
[1737975707727,0.152375,98441.0,98440.0,0.09748869]
[1737975708878,0.152375,98441.0,98440.0,0.0001414]
[1737975709087,0.17363981,98441.0,98440.0,0.0001414]
[1737975709293,0.53485129,98441.0,98440.0,0.0001414]
[1737975709491,0.53358114,98441.0,98440.0,0.0001414]
[1737975709697,0.54688408,98441.0,98440.0,0.0001414]
[1737975709897,0.4655726,98441.0,98440.0,0.0001414]
[1737975710766,0.4735726,98441.0,98440.0,0.0011414]
[1737975710974,0.4325726,98441.0,98440.0,0.0001414]
[1737975711406,0.4145726,98441.0,98440.0,0.0001414]
[1737975711622,0.154375,98441.0,98440.0,0.0001414]
[1737975711839,0.203128,98460.0,98440.0,0.0001414]
[1737975711840,0.152344,98461.0,98450.0,0.152361]
[1737975712051,0.0496,98473.0,98451.0,0.09734729]
[1737975712262,0.203107,98471.0,98454.0,0.152354]
[1737975712515,0.203107,98471.0,98455.0,0.09734729]
[1737975712726,0.152338,98466.0,98455.0,0.09734729]
[1737975712940,0.203088,98479.0,98455.0,0.09734729]
[1737975712941,0.15233,98470.0,98456.0,0.152351]
[1737975713157,0.008,98461.0,98457.0,0.09734729]
[1737975713365,0.152325,98474.0,98457.0,0.09734729]
[1737975713366,0.152339,98465.0,98457.0,0.09734729]
[1737975713578,0.203083,98482.0,98457.0,0.09734729]
[1737975713579,0.00126956,98464.0,98457.0,0.09734729]
[1737975713809,0.152349,98458.0,98457.0,0.09734729]
[1737975714244,0.152349,98458.0,98457.0,0.09784858]
[1737975715013,0.203107,98470.0,98457.0,0.09784858]
[1737975715212,0.02060565,98477.0,98457.0,0.09784858]
[1737975715402,0.02060565,98477.0,98460.0,0.152346]
[1737975715403,0.006,98461.0,98460.0,0.152346]
[1737975715763,0.006,98461.0,98460.0,0.24969329]
[1737975715965,0.002,98461.0,98460.0,0.24969329]
[1737975716644,0.002,98470.0,98469.0,0.152332]
[1737975716845,0.20304,98503.0,98469.0,0.09734729]
[1737975716846,0.152328,98472.0,98469.0,0.09734729]
[1737975717053,0.152321,98477.0,98470.0,0.09734729]
[1737975717224,0.152322,98476.0,98470.0,0.09734729]
[1737975717436,0.15262215,98474.0,98470.0,0.09734729]
[1737975717883,0.152326,98473.0,98470.0,0.09734729]
[1737975718230,0.152329,98471.0,98470.0,0.09734729]
[1737975718446,0.152329,98471.0,98457.0,0.00050129]
[1737975718447,0.00126947,98471.0,98457.0,0.00050129]
[1737975718649,0.152349,98458.0,98457.0,0.00050129]
[1737975718851,0.152349,98458.0,98457.0,0.09784858]
[1737975719286,0.152343,98463.0,98457.0,0.09784858]
[1737975719491,0.00029715,98474.0,98458.0,0.09734729]
[1737975719663,0.152326,98473.0,98458.0,0.09734729]
[1737975719898,0.152331,98470.0,98459.0,0.152346]
[1737975720105,0.203107,98470.0,98460.0,0.09734729]
[1737975720315,0.152337,98466.0,98460.0,0.09734729]
[1737975720519,0.00029715,98474.0,98460.0,0.09734729]
[1737975720934,0.00029715,98474.0,98461.0,0.30047129]
[1737975721144,0.00029715,98474.0,98464.0,0.152339]
[1737975721343,0.00029715,98474.0,98465.0,0.09734729]
[1737975721551,0.00029715,98474.0,98469.0,0.152332]
[1737975721756,0.00029715,98474.0,98473.0,0.24967329]
[1737975721983,0.00029715,98474.0,98473.0,0.43003865]
[1737975722184,0.00329715,98474.0,98473.0,0.43003865]
[1737975722396,0.00329715,98474.0,98473.0,0.68796665]
[1737975722600,1.5e-07,98474.0,98473.0,0.80746247]
[1737975722807,1.5e-07,98474.0,98473.0,0.54953447]
[1737975723011,0.152276,98506.0,98473.0,0.17521265]
[1737975723012,0.00126907,98505.0,98473.0,0.17521265]
[1737975723222,0.203026,98510.0,98484.0,0.24734729]
[1737975723424,0.00156606,98508.0,98484.0,0.09734729]
[1737975723631,0.00029694,98508.0,98489.0,0.09734729]
[1737975723850,0.00029694,98508.0,98500.0,0.152283]
[1737975724093,0.00029694,98508.0,98501.0,0.09734729]
[1737975724350,0.00029694,98508.0,98504.0,0.152277]
[1737975724624,0.00029694,98508.0,98505.0,0.09734729]
[1737975724896,0.00029694,98508.0,98505.0,0.09784858]
[1737975725910,0.00129694,98508.0,98505.0,0.09784858]
[1737975726094,0.00029694,98508.0,98505.0,0.09784858]
[1737975726494,0.00229694,98508.0,98505.0,0.09784858]
[1737975727118,0.152274,98506.0,98505.0,0.09784858]
[1737975728042,0.152274,98506.0,98505.0,0.00050129]
[1737975728452,0.1535432,98506.0,98505.0,0.00050129]
[1737975729094,0.22373209,98508.0,98505.0,0.00050129]
[1737975729095,0.00029694,98508.0,98505.0,0.09784858]
[1737975729318,0.00129694,98508.0,98506.0,0.09734729]
[1737975729522,0.152273,98507.0,98506.0,0.09734729]
[1737975730711,0.152273,98507.0,98505.0,0.00050129]
[1737975730712,0.00029694,98508.0,98505.0,0.00050129]
[1737975730887,0.152274,98506.0,98505.0,0.00050129]
[1737975732738,0.00047551,98506.0,98505.0,0.00050129]
[1737975733093,0.00147551,98506.0,98505.0,0.09784858]
[1737975733519,0.15474951,98506.0,98505.0,0.09784858]
[1737975733737,0.152274,98506.0,98505.0,0.00050129]
[1737975734164,0.001,98506.0,98505.0,0.09784858]
[1737975734383,0.153274,98506.0,98505.0,0.09784858]
[1737975734579,0.153274,98506.0,98505.0,0.00050129]
[1737975735387,0.152274,98506.0,98505.0,0.00050129]
[1737975735813,0.153274,98506.0,98505.0,0.00050129]
[1737975736002,0.152274,98506.0,98505.0,0.00050129]
[1737975736226,0.153274,98506.0,98505.0,0.00050129]
[1737975736588,0.0828,98488.0,98460.0,0.0001414]
[1737975736795,0.152344,98461.0,98460.0,0.0001414]
[1737975737010,0.15361373,98461.0,98460.0,0.0001414]
[1737975738211,0.162363,98449.0,98440.0,0.0221414]
[1737975738414,0.18663306,98449.0,98440.0,0.0221414]
[1737975738617,0.18663306,98449.0,98409.0,0.0001414]
[1737975738618,0.162408,98420.0,98409.0,0.0001414]
[1737975738767,0.152408,98420.0,98419.0,0.09049997]
[1737975739610,0.15367821,98420.0,98419.0,4.949e-05]
[1737975739784,0.1636784,98420.0,98419.0,4.949e-05]
[1737975740184,0.154408,98420.0,98419.0,4.949e-05]
[1737975740437,0.15567849,98420.0,98419.0,4.949e-05]
[1737975740585,0.42602578,98420.0,98419.0,4.949e-05]
[1737975740789,0.302423,98410.0,98409.0,0.0001414]
[1737975741039,0.302423,98410.0,98409.0,0.000191]
[1737975742495,0.153423,98410.0,98409.0,0.000191]
[1737975742955,0.156423,98410.0,98409.0,0.000191]
[1737975743158,0.15769344,98410.0,98409.0,0.000191]
[1737975743337,0.15669344,98410.0,98409.0,0.000191]
[1737975743541,0.15369344,98410.0,98409.0,0.000191]
[1737975744180,0.46759344,98410.0,98409.0,0.000191]
[1737975744391,0.152437,98401.0,98396.0,0.0001414]
[1737975744597,0.152437,98401.0,98400.0,0.00204953]
[1737975745169,0.203233,98409.0,98400.0,0.09939682]
[1737975745380,0.203233,98409.0,98401.0,0.09734729]
[1737975745553,0.203237,98407.0,98401.0,0.09734729]
[1737975745755,0.152434,98403.0,98402.0,1.5]
[1737975745958,0.152434,98403.0,98402.0,0.09734729]
[1737975746152,0.152406,98421.0,98402.0,0.24978229]
[1737975746357,0.004,98409.0,98403.0,1.59734729]
[1737975746561,0.001,98409.0,98403.0,0.09734729]
[1737975746779,0.001,98409.0,98404.0,0.152432]
[1737975746996,0.001,98409.0,98407.0,0.152427]
[1737975747197,0.001,98409.0,98408.0,0.09734729]
[1737975747402,0.001,98409.0,98408.0,0.24977329]
[1737975747811,0.15239,98432.0,98418.0,0.152409]
[1737975748018,0.08950455,98442.0,98419.0,0.09734729]
[1737975748019,0.0012701,98437.0,98419.0,0.09734729]
[1737975748233,0.152395,98429.0,98419.0,0.09734729]
[1737975748429,0.08950455,98442.0,98419.0,0.09734729]
[1737975748630,0.203173,98438.0,98419.0,0.09734729]
[1737975749035,0.152379,98439.0,98425.0,0.152399]
[1737975749254,0.08950455,98442.0,98426.0,0.09053267]
[1737975749473,0.152397,98427.0,98426.0,0.09053267]
[1737975749675,0.152396,98428.0,98426.0,0.09053267]
[1737975749922,0.152397,98427.0,98426.0,0.09053267]
[1737975751799,0.152392,98430.0,98426.0,0.09053267]
[1737975752008,0.152384,98435.0,98434.0,0.00826295]
[1737975752428,0.38045403,98435.0,98434.0,0.00826295]
[1737975752633,0.2498,98435.0,98400.0,0.002]
[1737975752847,0.20324,98406.0,98401.0,0.09734729]
[1737975753071,0.152435,98402.0,98401.0,0.09734729]
[1737975753285,0.203241,98405.0,98401.0,0.09734729]
[1737975753286,0.152433,98404.0,98401.0,0.09739682]
[1737975753499,0.152435,98402.0,98401.0,0.09739682]
[1737975754992,0.152435,98402.0,98401.0,4.953e-05]
[1737975755206,0.15370548,98402.0,98401.0,4.953e-05]
[1737975755416,0.15370561,98402.0,98401.0,4.953e-05]
[1737975756469,0.152435,98402.0,98401.0,0.00104953]
[1737975756885,0.152435,98402.0,98401.0,4.953e-05]
[1737975757306,0.153435,98402.0,98401.0,4.953e-05]
[1737975758125,0.153395,98402.0,98401.0,4.953e-05]
[1737975758769,0.15466547,98402.0,98401.0,4.953e-05]
[1737975760210,0.303395,98402.0,98401.0,4.953e-05]
[1737975760867,0.001,98402.0,98401.0,0.09739682]
[1737975761086,0.153435,98402.0,98401.0,4.953e-05]
[1737975761305,0.001,98402.0,98401.0,0.09739682]
[1737975761502,0.001,98402.0,98401.0,0.24983382]
[1737975761710,0.001,98402.0,98401.0,0.69313718]
[1737975761968,0.203131,98459.0,98425.0,0.15]
[1737975762186,0.203131,98459.0,98401.0,1.33330018]
[1737975762187,0.203107,98470.0,98443.0,0.15237]
[1737975762391,0.152328,98472.0,98461.0,0.152344]
[1737975762595,0.24183455,98471.0,98462.0,0.09734729]
[1737975762801,0.24183455,98471.0,98464.0,0.152338]
[1737975762802,0.08950455,98471.0,98464.0,0.152338]
[1737975763071,0.15235,98457.0,98445.0,0.152368]
[1737975763326,0.08950455,98471.0,98446.0,0.09734729]
[1737975763327,0.00126967,98470.0,98446.0,0.09734729]
[1737975763579,0.152345,98461.0,98450.0,0.15236]
[1737975763838,0.152348,98459.0,98451.0,0.09734729]
[1737975764086,0.00029694,98474.0,98451.0,0.09734729]
[1737975764329,0.00029694,98474.0,98456.0,0.09734729]
[1737975764558,0.002,98471.0,98467.0,0.152333]
[1737975764803,0.002,98471.0,98468.0,0.09734729]
[1737975765043,0.00029694,98474.0,98473.0,0.152326]
[1737975765304,0.00029694,98474.0,98473.0,0.24967329]
[1737975765827,0.07903709,98475.0,98474.0,0.152324]
[1737975766090,0.07903709,98475.0,98474.0,0.24967129]
[1737975767266,0.07903709,98475.0,98474.0,0.25267129]
[1737975767510,0.07903709,98475.0,98474.0,0.24967129]
[1737975767768,0.07917859,98475.0,98474.0,0.25267129]
[1737975768260,0.07917859,98475.0,98474.0,0.39967129]
[1737975768944,0.07917859,98475.0,98474.0,1.89967129]
[1737975769160,0.07917859,98475.0,98474.0,2.78835429]
[1737975769375,0.07917859,98475.0,98474.0,2.79035429]
[1737975769566,0.07917859,98475.0,98474.0,2.66079929]
[1737975770039,0.07917859,98475.0,98474.0,2.65779929]
[1737975770251,0.07917859,98475.0,98474.0,0.95910629]
[1737975770462,0.07917859,98475.0,98474.0,0.40667129]
[1737975770668,0.07827859,98475.0,98474.0,0.40667129]
[1737975771295,0.07827859,98475.0,98474.0,0.40467129]
[1737975771706,0.07827859,98475.0,98474.0,0.40667129]
[1737975771892,0.0001415,98475.0,98474.0,0.40667129]
[1737975772105,0.0001415,98475.0,98474.0,0.40467129]
[1737975772448,0.0001415,98475.0,98474.0,0.40667129]
[1737975772647,0.0001415,98475.0,98474.0,0.40167129]
[1737975772900,0.0001415,98475.0,98474.0,0.64755429]
[1737975773108,0.0001415,98475.0,98474.0,2.08522629]
[1737975773309,0.0001415,98475.0,98474.0,2.08022629]
[1737975773517,0.0001415,98475.0,98474.0,2.08522629]
[1737975773671,0.0001415,98475.0,98474.0,2.10822629]
[1737975773876,0.0001415,98475.0,98474.0,2.11532629]
[1737975774080,0.0001415,98475.0,98474.0,2.12032629]
[1737975774466,0.0001415,98475.0,98474.0,2.11832629]
[1737975774709,0.0001415,98475.0,98474.0,2.12032629]
[1737975774948,0.0001415,98475.0,98474.0,0.40667129]
[1737975775573,0.0001415,98475.0,98474.0,0.51141729]
[1737975776416,0.0001415,98475.0,98474.0,0.53441729]
[1737975776966,0.0001415,98475.0,98474.0,2.03441729]
[1737975777833,0.0001415,98475.0,98474.0,0.51141729]
[1737975778897,0.0001415,98475.0,98474.0,0.53441729]
[1737975779107,0.0001415,98475.0,98474.0,0.42967129]
[1737975779305,5e-07,98475.0,98474.0,1.01172629]
[1737975779512,5e-07,98475.0,98474.0,0.42967129]
[1737975779712,5e-07,98475.0,98474.0,1.92967129]
[1737975779833,5e-07,98475.0,98474.0,1.92981289]
[1737975780477,0.00029694,98506.0,98505.0,0.152276]
[1737975780682,0.00029694,98506.0,98505.0,0.27262329]
[1737975780886,0.00029694,98506.0,98505.0,0.42262329]
[1737975781056,0.00029694,98506.0,98505.0,0.46902329]
[1737975781272,0.00029694,98508.0,98505.0,0.46902329]
[1737975781273,8.8e-07,98508.0,98507.0,0.302273]
[1737975781470,8.8e-07,98508.0,98507.0,0.42262029]
[1737975781834,0.0005012,98508.0,98507.0,0.42262029]
[1737975782041,0.00029694,98530.0,98509.0,0.01]
[1737975782265,0.00029694,98530.0,98529.0,0.42258629]
[1737975782484,0.00029694,98530.0,98529.0,0.45295165]
[1737975782705,0.00029694,98530.0,98529.0,1.98120965]
[1737975782905,0.00029694,98530.0,98529.0,1.25153265]
[1737975783186,9.4e-07,98530.0,98529.0,1.19329765]
[1737975783394,9.4e-07,98530.0,98529.0,1.33692298]
[1737975783595,9.4e-07,98530.0,98529.0,1.32692298]
[1737975784005,9.4e-07,98530.0,98529.0,1.33692298]
[1737975784426,3e-07,98536.0,98535.0,0.30223]
[1737975784631,3e-07,98536.0,98535.0,0.24957729]
[1737975785871,3e-07,98536.0,98535.0,0.25657729]
[1737975786082,3e-07,98536.0,98535.0,0.10434729]
[1737975786295,0.1522283,98536.0,98535.0,0.10534729]
[1737975786506,3e-07,98536.0,98535.0,0.10534729]
[1737975786711,0.1522283,98536.0,98535.0,0.10534729]
[1737975786923,0.15349706,98536.0,98535.0,0.008]
[1737975787137,0.42084435,98536.0,98535.0,0.008]
[1737975787344,0.152271,98508.0,98481.0,0.203084]
[1737975787550,0.152271,98508.0,98483.0,0.15231]
[1737975787763,0.152271,98508.0,98484.0,0.203078]
[1737975787764,0.15354016,98508.0,98484.0,0.203078]
[1737975787960,0.152271,98508.0,98490.0,0.152299]
[1737975788117,0.152271,98508.0,98497.0,0.152288]
[1737975788318,0.16,98531.0,98474.0,0.0001416]
[1737975788319,3e-07,98536.0,98514.0,0.152262]
[1737975788523,3e-07,98536.0,98515.0,0.09734729]
[1737975788728,0.202983,98531.0,98515.0,0.09734729]
[1737975788929,0.2029723,98536.0,98515.0,0.09734729]
[1737975789366,0.202973,98535.0,98524.0,0.152245]
[1737975789555,0.152244,98526.0,98525.0,0.09734729]
[1737975789739,0.004,98535.0,98525.0,0.09734729]
[1737975789740,0.355206,98534.0,98525.0,0.09734729]
[1737975789914,0.004,98535.0,98525.0,0.09734729]
[1737975790131,0.004,98535.0,98534.0,0.152231]
[1737975790335,0.004,98535.0,98534.0,0.24957829]
[1737975791193,0.009,98535.0,98534.0,0.24957829]
[1737975791402,0.00029758,98560.0,98539.0,0.302223]
[1737975791609,0.00029758,98560.0,98559.0,0.27254029]
[1737975792026,0.00029758,98560.0,98559.0,0.42254029]
[1737975792253,0.00029758,98560.0,98559.0,1.32715829]
[1737975792453,0.00029758,98560.0,98559.0,1.13653729]
[1737975792664,0.00029758,98560.0,98559.0,1.06880882]
[1737975792876,0.00029758,98560.0,98559.0,1.04917682]
[1737975793080,0.00029758,98560.0,98559.0,0.87668406]
[1737975793288,0.00029758,98560.0,98559.0,0.79403006]
[1737975793517,0.00029758,98560.0,98559.0,0.72848306]
[1737975793722,0.00029758,98560.0,98559.0,0.75884842]
[1737975793922,0.00029758,98560.0,98559.0,0.73584842]
[1737975794288,0.00029758,98560.0,98559.0,0.42995518]
[1737975794522,0.00029758,98560.0,98559.0,0.43195518]
[1737975794943,0.00029758,98560.0,98559.0,2.88131918]
[1737975795143,0.00029758,98560.0,98559.0,3.11615818]
[1737975795354,0.00029758,98560.0,98559.0,2.50352718]
[1737975795527,0.00029758,98560.0,98559.0,2.42018518]
[1737975795728,0.00029758,98560.0,98559.0,2.41418518]